fUST/lending_fUST_20250502
["ID","MTS","AMOUNT","RATE_DAILY","PERIOD"]
[359606056,1746179441748,-400.0,0.00019178,2]
[359606058,1746179441759,-400.0,0.00019178,2]
[359606060,1746179441768,-400.0,0.00019178,2]
[359606062,1746179441777,-400.0,0.00019178,2]
[359606064,1746179441787,-2744.97,0.00019178,2]
[359606066,1746179441796,-1540.81,0.00019178,2]
[359606068,1746179441806,-400.0,0.00019178,2]
[359606070,1746179441815,-412.83,0.00019178,2]
[359606072,1746179441824,-400.0,0.00019178,2]
[359606074,1746179441833,-432.72394263,0.00019178,2]
[359606076,1746179441842,-400.0,0.00019178,2]
[359606078,1746179441853,-400.0,0.00019178,2]
[359606080,1746179441862,-261.73679507,0.00019178,2]
[359606082,1746179441871,-501.55708075,0.00019178,2]
[359606084,1746179441881,-400.0,0.00019178,2]
[359606086,1746179441890,-404.42791847,0.00019178,2]
[359606088,1746179441899,-400.0,0.00019178,2]
[359606090,1746179441908,-912.37,0.00019178,2]
[359606092,1746179441918,-500.0,0.00019178,2]
[359606094,1746179441927,-755.04,0.00019178,2]
[359606096,1746179441936,-400.0,0.00019178,2]
[359606098,1746179441946,-400.0,0.00019178,2]
[359606100,1746179441955,-707.49,0.00019178,2]
[359606102,1746179441965,-400.0,0.00019178,2]
[359606104,1746179441974,-400.0,0.00019178,2]
[359606106,1746179441984,-400.0,0.00019178,2]
[359606108,1746179441993,-400.0,0.00019178,2]
[359606110,1746179442003,-2870.5,0.00019178,2]
[359606111,1746179442012,-490.92,0.00019178,2]
[359606112,1746179442021,-400.0,0.00019178,2]
[359606113,1746179442031,-329.31931004,0.00019178,2]
[359606114,1746179442040,-400.0,0.00019178,2]
[359606115,1746179442050,-310.0698215,0.00019178,2]
[359606117,1746179442059,-400.0,0.00019178,2]
[359606119,1746179442068,-713.15,0.00019178,2]
[359606121,1746179442077,-400.0,0.00019178,2]
[359606123,1746179442086,-400.0,0.00019178,2]
[359606125,1746179442096,-400.0,0.00019178,2]
[359606127,1746179442105,-684.74,0.00019178,2]
[359606129,1746179442114,-400.0,0.00019178,2]
[359606131,1746179442123,-400.0,0.00019178,2]
[359606133,1746179442133,-400.0,0.00019178,2]
[359606135,1746179442142,-400.0,0.00019178,2]
[359606137,1746179442152,-400.0,0.00019178,2]
[359606139,1746179442161,-400.0,0.00019178,2]
[359606141,1746179442170,-400.0,0.00019178,2]
[359606143,1746179442179,-501.09544473,0.00019178,2]
[359606145,1746179442188,-460.76,0.00019178,2]
[359606147,1746179442197,-400.0,0.00019178,2]
[359606149,1746179442207,-2499.43,0.00019178,2]
[359606151,1746179442217,-400.0,0.00019178,2]
[359606152,1746179442225,-500.0,0.00019178,2]
[359606155,1746179442235,-400.0,0.00019178,2]
[359606157,1746179442244,-400.0,0.00019178,2]
[359606158,1746179442253,-400.0,0.00019178,2]
[359606161,1746179442263,-400.0,0.00019178,2]
[359606162,1746179442272,-497.17,0.00019178,2]
[359606164,1746179442282,-400.0,0.00019178,2]
[359606166,1746179442291,-432.6,0.00019178,2]
[359606168,1746179442301,-400.0,0.00019178,2]
[359606170,1746179442311,-1036.89,0.00019178,2]
[359606173,1746179442321,-505.76176493,0.00019178,2]
[359606175,1746179442331,-400.0,0.00019178,2]
[359606177,1746179442341,-400.0,0.00019178,2]
[359606179,1746179442351,-3372.45,0.00019178,2]
[359606181,1746179442360,-400.0,0.00019178,2]
[359606183,1746179442369,-725.55,0.00019178,2]
[359606185,1746179442379,-400.0,0.00019178,2]
[359606187,1746179442389,-1080.05,0.00019178,2]
[359606189,1746179442398,-400.0,0.00019178,2]
[359606190,1746179442407,-400.0,0.00019178,2]
[359606192,1746179442416,-7099.27,0.00019178,2]
[359606195,1746179442426,-400.0,0.00019178,2]
[359606196,1746179442435,-400.0,0.00019178,2]
[359606198,1746179442446,-400.56573145,0.00019178,2]
[359606201,1746179442456,-400.0,0.00019178,2]
[359606202,1746179442465,-400.0,0.00019178,2]
[359606204,1746179442474,-400.0,0.00019178,2]
[359606206,1746179442484,-1063.9,0.00019178,2]
[359606209,1746179442494,-714.82,0.00019178,2]
[359606211,1746179442503,-400.0,0.00019178,2]
[359606212,1746179442513,-400.0,0.00019178,2]
[359606214,1746179442523,-400.0,0.00019178,2]
[359606216,1746179442532,-400.0,0.00019178,2]
[359606218,1746179442544,-1688.68,0.00019178,2]
[359606221,1746179442554,-400.0,0.00019178,2]
[359606223,1746179442563,-189.81844093,0.00019178,2]
[359606225,1746179442573,-400.0,0.00019178,2]
[359606227,1746179442583,-388.62533981,0.00019178,2]
[359606229,1746179442592,-400.52,0.00019178,2]
[359606231,1746179442601,-400.0,0.00019178,2]
[359606233,1746179442610,-400.0,0.00019178,2]
[359606235,1746179442619,-500.97098562,0.00019178,2]
[359606237,1746179442628,-400.0,0.00019178,2]
[359606239,1746179442637,-400.0,0.00019178,2]
[359606241,1746179442647,-400.0,0.00019178,2]
[359606243,1746179442656,-207.00300614,0.00019178,2]
[359606245,1746179442665,-400.0,0.00019178,2]
[359606247,1746179442675,-1503.03,0.00019178,2]
[359606249,1746179442689,-400.0,0.00019178,2]
[359606251,1746179442698,-400.0,0.00019178,2]
[359606253,1746179442707,-400.0,0.00019178,2]
[359606255,1746179442717,-3264.69,0.00019178,2]
[359606257,1746179442727,-400.0,0.00019178,2]
[359606259,1746179442736,-400.0,0.00019178,2]
[359606261,1746179442746,-400.0,0.00019178,2]
[359606263,1746179442755,-400.0,0.00019178,2]
[359606265,1746179442766,-2248.67,0.00019178,2]
[359606267,1746179442776,-20688.1,0.00019178,2]
[359606269,1746179442786,-400.0,0.00019178,2]
[359606271,1746179442795,-400.0,0.00019178,2]
[359606273,1746179442805,-571.29,0.00019178,2]
[359606275,1746179442814,-681.35,0.00019178,2]
[359606277,1746179442824,-400.0,0.00019178,2]
[359606279,1746179442835,-400.0,0.00019178,2]
[359606281,1746179442844,-507.2030201,0.00019178,2]
[359606284,1746179442853,-314.81297123,0.00019178,2]
[359606286,1746179442863,-400.0,0.00019178,2]
[359606288,1746179442872,-400.0,0.00019178,2]
[359606291,1746179442882,-400.0,0.00019178,2]
[359606293,1746179442892,-400.0,0.00019178,2]
[359606297,1746179442901,-400.0,0.00019178,2]
[359606299,1746179442911,-519.68,0.00019178,2]
[359606301,1746179442921,-400.0,0.00019178,2]
[359606303,1746179442930,-400.0,0.00019178,2]
[359606305,1746179442940,-400.0,0.00019178,2]
[359606307,1746179442949,-400.0,0.00019178,2]
[359606309,1746179442958,-501.30918844,0.00019178,2]
[359606311,1746179442967,-400.0,0.00019178,2]
[359606313,1746179442977,-400.0,0.00019178,2]
[359606315,1746179442986,-400.0,0.00019178,2]
[359606317,1746179442996,-181.775868,0.00019178,2]
[359606319,1746179443006,-865.22073751,0.0001918,2]
[359606321,1746179443015,-222.27497071,0.0001918,2]
[359606323,1746179443025,-695.79,0.00019256,2]
[359606325,1746179443034,-695.79,0.00019256,2]
[359606327,1746179443044,-695.79,0.00019256,2]
[359606329,1746179443053,-695.79,0.00019256,2]
[359606331,1746179443063,-695.79,0.00019256,2]
[359606333,1746179443072,-695.79,0.00019256,2]
[359606335,1746179443082,-695.95621826,0.00019256,2]
[359606337,1746179443091,-83843.58454371,0.00019257,2]
[359606339,1746179443100,-459.73012722,0.0001932,2]
[359606341,1746179443110,-12598.98820072,0.00019329,3]
[359606343,1746179443119,-313.59996616,0.00019329,3]
[359606345,1746179443128,-151.0,0.00019329,2]
[359606347,1746179443138,-182.750027,0.00019329,2]
[359606350,1746179443147,-182.750027,0.00019329,2]
[359606352,1746179443157,-100000.0,0.00019329,2]
[359606354,1746179443167,-2946.9,0.00019329,2]
[359606356,1746179443176,-2946.9,0.00019329,2]
[359606358,1746179443186,-2946.9,0.00019329,2]
[359606360,1746179443195,-2278.23328678,0.00019329,2]
[359606363,1746179443219,-668.66671322,0.00019329,2]
[359606365,1746179443229,-2946.9,0.00019329,2]
[359606367,1746179443239,-2946.9,0.00019329,2]
[359606369,1746179443249,-178.19689195,0.00019352,2]
[359606371,1746179443258,-151.0,0.000194,2]
[359606373,1746179443268,-151.0,0.000194,2]
[359606375,1746179443278,-151.0,0.000194,2]
[359606377,1746179443289,-151.0,0.000194,2]
[359606379,1746179443298,-1824.65,0.00019452,2]
[359606381,1746179443307,-400.0,0.00019452,2]
[359606384,1746179443317,-400.0,0.00019452,2]
[359606386,1746179443327,-400.0,0.00019452,2]
[359606388,1746179443336,-400.0,0.00019452,2]
[359606390,1746179443347,-400.0,0.00019452,2]
[359606392,1746179443357,-186.41606628,0.00019452,2]
[359606395,1746179443366,-312.2753113,0.00019452,2]
[359606397,1746179443375,-400.0,0.00019452,2]
[359606399,1746179443385,-400.0,0.00019452,2]
[359606401,1746179443394,-400.0,0.00019452,2]
[359606403,1746179443403,-932.35,0.00019452,2]
[359606405,1746179443412,-400.0,0.00019452,2]
[359606407,1746179443422,-710.87,0.00019452,2]
[359606409,1746179443431,-400.0,0.00019452,2]
[359606411,1746179443441,-400.0,0.00019452,2]
[359606413,1746179443451,-400.0,0.00019452,2]
[359606415,1746179443461,-400.0,0.00019452,2]
[359606417,1746179443472,-400.0,0.00019452,2]
[359606419,1746179443482,-776.47,0.00019452,2]
[359606421,1746179443492,-400.0,0.00019452,2]
[359606423,1746179443502,-400.0,0.00019452,2]
[359606425,1746179443512,-797.62,0.00019452,2]
[359606427,1746179443521,-400.0,0.00019452,2]
[359606429,1746179443531,-511.56661859,0.00019452,2]
[359606431,1746179443541,-400.0,0.00019452,2]
[359606433,1746179443551,-202.82759248,0.00019452,2]
[359606435,1746179443560,-400.0,0.00019452,2]
[359606437,1746179443569,-400.0,0.00019452,2]
[359606439,1746179443579,-400.0,0.00019452,2]
[359606441,1746179443590,-202.06471749,0.00019452,2]
[359606443,1746179443599,-400.0,0.00019452,2]
[359606445,1746179443608,-305.89643462,0.00019452,2]
[359606447,1746179443618,-400.0,0.00019452,2]
[359606449,1746179443627,-400.0,0.00019452,2]
[359606451,1746179443636,-693.24,0.00019452,2]
[359606453,1746179443646,-400.0,0.00019452,2]
[359606455,1746179443655,-400.0,0.00019452,2]
[359606458,1746179443665,-400.0,0.00019452,2]
[359606460,1746179443675,-400.0,0.00019452,2]
[359606462,1746179443689,-400.0,0.00019452,2]
[359606464,1746179443698,-400.0,0.00019452,2]
[359606466,1746179443707,-400.0,0.00019452,2]
[359606468,1746179443716,-313.08338835,0.00019452,2]
[359606470,1746179443726,-400.0,0.00019452,2]
[359606472,1746179443736,-400.0,0.00019452,2]
[359606474,1746179443746,-448.34426473,0.00019452,2]
[359606476,1746179443755,-400.0,0.00019452,2]
[359606478,1746179443764,-491.21,0.00019452,2]
[359606480,1746179443774,-51.81360676,0.00019452,2]
[359606482,1746179443788,-150.1410803,0.00019452,2]
[359606484,1746179443798,-400.0,0.00019452,2]
[359606486,1746179443807,-400.0,0.00019452,2]
[359606488,1746179443816,-400.0,0.00019452,2]
[359606490,1746179443825,-400.0,0.00019452,2]
[359606492,1746179443835,-400.0,0.00019452,2]
[359606494,1746179443844,-448.76,0.00019452,2]
[359606496,1746179443853,-400.0,0.00019452,2]
[359606498,1746179443863,-456.53207951,0.00019452,2]
[359606500,1746179443872,-400.0,0.00019452,2]
[359606502,1746179443881,-400.0,0.00019452,2]
[359606504,1746179443891,-400.0,0.00019452,2]
[359606505,1746179443900,-400.0,0.00019452,2]
[359606506,1746179443909,-171.81813672,0.00019452,2]
[359606507,1746179443919,-400.0,0.00019452,2]
[359606508,1746179443929,-589.01,0.00019452,2]
[359606509,1746179443938,-400.0,0.00019452,2]
[359606510,1746179443948,-400.0,0.00019452,2]
[359606511,1746179443957,-400.0,0.00019452,2]
[359606512,1746179443966,-400.0,0.00019452,2]
[359606513,1746179443975,-400.0,0.00019452,2]
[359606514,1746179443984,-400.0,0.00019452,2]
[359606515,1746179443994,-400.0,0.00019452,2]
[359606516,1746179444003,-400.0,0.00019452,2]
[359606517,1746179444012,-400.0,0.00019452,2]
[359606518,1746179444022,-273.20431788,0.00019452,2]
[359606519,1746179444031,-400.0,0.00019452,2]
[359606520,1746179444041,-400.0,0.00019452,2]
[359606521,1746179444050,-400.0,0.00019452,2]
[359606522,1746179444059,-400.0,0.00019452,2]
[359606523,1746179444068,-400.0,0.00019452,2]
[359606524,1746179444078,-400.0,0.00019452,2]
[359606525,1746179444088,-400.0,0.00019452,2]
[359606526,1746179444098,-400.0,0.00019452,2]
[359606527,1746179444108,-400.0,0.00019452,2]
[359606529,1746179444117,-400.0,0.00019452,2]
[359606531,1746179444127,-400.0,0.00019452,2]
[359606533,1746179444136,-400.0,0.00019452,2]
[359606535,1746179444147,-432.22695552,0.00019452,2]
[359606537,1746179444156,-400.0,0.00019452,2]
[359606539,1746179444167,-504.38961022,0.00019452,2]
[359606541,1746179444179,-400.0,0.00019452,2]
[359606543,1746179444188,-400.0,0.00019452,2]
[359606545,1746179444198,-400.0,0.00019452,2]
[359606547,1746179444207,-151.0,0.00019452,2]
[359606549,1746179444216,-400.0,0.00019452,2]
[359606551,1746179444226,-151.0,0.00019452,2]
[359606553,1746179444235,-400.0,0.00019452,2]
[359606555,1746179444246,-400.0,0.00019452,2]
[359606557,1746179444255,-400.0,0.00019452,2]
[359606559,1746179444264,-394.8440532,0.00019452,2]
[359606564,1746179444307,-5.1559468,0.00019452,2]
[359606566,1746179444316,-722.96,0.00019452,2]
[359606568,1746179444326,-400.0,0.00019452,2]
[359606570,1746179444335,-203.01005767,0.00019452,2]
[359606572,1746179444345,-469.81,0.00019452,2]
[359606574,1746179444355,-400.0,0.00019452,2]
[359606576,1746179444365,-1222.8,0.00019452,2]
[359606578,1746179444375,-400.0,0.00019452,2]
[359606580,1746179444384,-400.0,0.00019452,2]
[359606582,1746179444394,-400.0,0.00019452,2]
[359606584,1746179444404,-1168.0,0.00019452,2]
[359606586,1746179444413,-210.0572156,0.00019452,2]
[359606588,1746179444423,-400.0,0.00019452,2]
[359606590,1746179444432,-2071.22,0.00019452,2]
[359606592,1746179444442,-391.16984738,0.00019452,2]
[359606594,1746179444453,-400.0,0.00019452,2]
[359606596,1746179444462,-400.0,0.00019452,2]
[359606598,1746179444472,-638.81,0.00019452,2]
[359606600,1746179444482,-400.0,0.00019452,2]
[359606602,1746179444492,-557.08,0.00019452,2]
[359606604,1746179444502,-400.0,0.00019452,2]
[359606607,1746179444512,-4530.76,0.00019452,2]
[359606609,1746179444522,-400.0,0.00019452,2]
[359606611,1746179444532,-400.0,0.00019452,2]
[359606612,1746179444542,-400.0,0.00019452,2]
[359606615,1746179444552,-548.77,0.00019452,2]
[359606617,1746179444562,-544.08455517,0.00019452,2]
[359606619,1746179444576,-250.36544483,0.00019452,2]
[359606621,1746179444586,-400.0,0.00019452,2]
[359606623,1746179444595,-400.0,0.00019452,2]
[359606625,1746179444605,-680.84,0.00019452,2]
[359606627,1746179444614,-77.92290172,0.00019452,2]
[359606629,1746179444626,-322.07709828,0.00019452,2]
[359606631,1746179444636,-424.47709477,0.00019452,2]
[359606633,1746179444646,-500.0,0.00019452,2]
[359606635,1746179444656,-867.17,0.00019452,2]
[359606637,1746179444665,-400.0,0.00019452,2]
[359606639,1746179444675,-400.0,0.00019452,2]
[359606641,1746179444689,-400.0,0.00019452,2]
[359606643,1746179444699,-400.0,0.00019452,2]
[359606645,1746179444709,-400.0,0.00019452,2]
[359606648,1746179444719,-400.0,0.00019452,2]
[359606650,1746179444729,-400.0,0.00019452,2]
[359606652,1746179444739,-400.0,0.00019452,2]
[359606654,1746179444749,-400.0,0.00019452,2]
[359606656,1746179444761,-400.0,0.00019452,2]
[359606658,1746179444771,-10.46893073,0.00019452,2]
[359606672,1746179445600,-769.43,0.00019178,2]
[359606673,1746179445610,-400.0,0.00019178,2]
[359606674,1746179445620,-400.0,0.00019178,2]
[359606675,1746179445631,-500.47161087,0.00019178,2]
[359606676,1746179445641,-389.53106927,0.00019452,2]
[359606678,1746179445651,-512.82162614,0.00019452,2]
[359606679,1746179445660,-400.0,0.00019452,2]
[359606681,1746179445669,-400.0,0.00019452,2]
[359606682,1746179445681,-400.0,0.00019452,2]
[359606683,1746179445695,-2156.49,0.00019452,2]
[359606684,1746179445705,-400.0,0.00019452,2]
[359606685,1746179445714,-892.92,0.00019452,2]
[359606686,1746179445725,-400.0,0.00019452,2]
[359606687,1746179445735,-400.0,0.00019452,2]
[359606688,1746179445744,-400.0,0.00019452,2]
[359606689,1746179445754,-400.0,0.00019452,2]
[359606690,1746179445765,-400.0,0.00019452,2]
[359606691,1746179445776,-400.0,0.00019452,2]
[359606692,1746179445785,-223.80425038,0.00019452,2]
[359606693,1746179445795,-407.19624537,0.00019452,2]
[359606694,1746179445805,-400.0,0.00019452,2]
[359606695,1746179445814,-182.750027,0.00019452,2]
[359606696,1746179445824,-182.750027,0.00019452,2]
[359606697,1746179445833,-400.0,0.00019452,2]
[359606698,1746179445843,-430.9,0.00019452,2]
[359606699,1746179445853,-1143.87,0.00019452,2]
[359606700,1746179445864,-400.0,0.00019452,2]
[359606701,1746179445874,-182.750027,0.00019452,2]
[359606702,1746179445884,-182.750027,0.00019452,2]
[359606703,1746179445894,-400.0,0.00019452,2]
[359606704,1746179445904,-400.0,0.00019452,2]
[359606705,1746179445913,-1296.78,0.00019452,2]
[359606706,1746179445923,-508.3355856,0.00019452,2]
[359606707,1746179445933,-411.83056225,0.00019452,2]
[359606708,1746179445943,-400.0,0.00019452,2]
[359606709,1746179445953,-400.0,0.00019452,2]
[359606710,1746179445964,-400.0,0.00019452,2]
[359606711,1746179445974,-400.0,0.00019452,2]
[359606712,1746179445984,-400.0,0.00019452,2]
[359606713,1746179445994,-1187.56,0.00019452,2]
[359606714,1746179446003,-841.86,0.00019452,2]
[359606715,1746179446013,-400.0,0.00019452,2]
[359606716,1746179446023,-400.0,0.00019452,2]
[359606717,1746179446033,-500.0,0.00019452,2]
[359606718,1746179446043,-500.0,0.00019452,2]
[359606719,1746179446052,-400.0,0.00019452,2]
[359606720,1746179446061,-151.0,0.00019452,2]
[359606721,1746179446071,-1087.31,0.00019452,2]
[359606722,1746179446081,-169.78580715,0.00019452,2]
[359606723,1746179446090,-1028.23,0.00019452,2]
[359606724,1746179446100,-500.0,0.00019452,2]
[359606725,1746179446110,-151.0,0.00019452,2]
[359606726,1746179446120,-400.0,0.00019452,2]
[359606727,1746179446130,-203.31675979,0.00019452,2]
[359606728,1746179446140,-400.0,0.00019452,2]
[359606729,1746179446150,-1962.7,0.00019452,2]
[359606730,1746179446159,-400.0,0.00019452,2]
[359606731,1746179446168,-400.0,0.00019452,2]
[359606733,1746179446179,-400.0,0.00019452,2]
[359606735,1746179446189,-400.0,0.00019452,2]
[359606737,1746179446199,-400.0,0.00019452,2]
[359606738,1746179446216,-649.87,0.00019452,2]
[359606740,1746179446226,-993.83,0.00019452,2]
[359606742,1746179446235,-400.0,0.00019452,2]
[359606743,1746179446245,-422.47912202,0.00019452,2]
[359606744,1746179446255,-400.0,0.00019452,2]
[359606745,1746179446264,-400.0,0.00019452,2]
[359606746,1746179446274,-400.0,0.00019452,2]
[359606747,1746179446283,-1157.6,0.00019452,2]
[359606748,1746179446292,-400.0,0.00019452,2]
[359606749,1746179446301,-400.0,0.00019452,2]
[359606750,1746179446311,-400.0,0.00019452,2]
[359606751,1746179446320,-722.51,0.00019452,2]
[359606752,1746179446329,-400.0,0.00019452,2]
[359606753,1746179446339,-1352.9,0.00019452,2]
[359606754,1746179446348,-400.0,0.00019452,2]
[359606755,1746179446359,-500.59,0.00019452,2]
[359606756,1746179446368,-425.17,0.00019452,2]
[359606757,1746179446378,-479.71,0.00019452,2]
[359606758,1746179446387,-732.54,0.00019452,2]
[359606759,1746179446397,-421.97,0.00019452,2]
[359606760,1746179446406,-400.0,0.00019452,2]
[359606761,1746179446415,-261.74342112,0.00019452,2]
[359606762,1746179446425,-512.37,0.00019452,2]
[359606763,1746179446434,-506.0699279,0.00019452,2]
[359606764,1746179446444,-1014.37,0.00019452,2]
[359606766,1746179446453,-401.88815182,0.00019452,2]
[359606767,1746179446463,-400.0,0.00019452,2]
[359606768,1746179446472,-203.92446108,0.00019452,2]
[359606769,1746179446482,-400.0,0.00019452,2]
[359606770,1746179446491,-1921.24,0.00019452,2]
[359606771,1746179446501,-400.0,0.00019452,2]
[359606772,1746179446511,-400.0,0.00019452,2]
[359606773,1746179446521,-400.0,0.00019452,2]
[359606774,1746179446531,-679.19,0.00019452,2]
[359606775,1746179446541,-400.0,0.00019452,2]
[359606776,1746179446550,-400.0,0.00019452,2]
[359606777,1746179446560,-400.0,0.00019452,2]
[359606778,1746179446570,-400.0,0.00019452,2]
[359606779,1746179446581,-400.0,0.00019452,2]
[359606780,1746179446591,-400.0,0.00019452,2]
[359606781,1746179446601,-634.23,0.00019452,2]
[359606782,1746179446611,-400.0,0.00019452,2]
[359606783,1746179446621,-283.61609342,0.00019452,2]
[359606784,1746179446631,-424.89,0.00019452,2]
[359606785,1746179446641,-400.0,0.00019452,2]
[359606786,1746179446651,-296.87288367,0.00019452,2]
[359606787,1746179446660,-400.0,0.00019452,2]
[359606788,1746179446669,-151.0,0.00019452,2]
[359606789,1746179446680,-151.0,0.00019452,2]
[359606790,1746179446692,-151.0,0.00019452,2]
[359606791,1746179446701,-400.0,0.00019452,2]
[359606792,1746179446711,-480.9,0.00019452,2]
[359606793,1746179446720,-400.0,0.00019452,2]
[359606794,1746179446731,-400.0,0.00019452,2]
[359606795,1746179446740,-400.0,0.00019452,2]
[359606796,1746179446749,-400.0,0.00019452,2]
[359606797,1746179446759,-400.0,0.00019452,2]
[359606798,1746179446770,-400.0,0.00019452,2]
[359606799,1746179446781,-400.0,0.00019452,2]
[359606800,1746179446791,-453.59,0.00019452,2]
[359606801,1746179446801,-400.0,0.00019452,2]
[359606802,1746179446811,-500.0,0.00019452,2]
[359606803,1746179446821,-400.0,0.00019452,2]
[359606804,1746179446830,-400.0010974,0.00019452,2]
[359606805,1746179446841,-302.94715837,0.00019452,2]
[359606806,1746179446850,-400.0,0.00019452,2]
[359606807,1746179446861,-169.34903785,0.00019452,2]
[359606808,1746179446870,-400.0,0.00019452,2]
[359606809,1746179446879,-2062.32,0.00019452,2]
[359606810,1746179446889,-400.0,0.00019452,2]
[359606811,1746179446899,-400.0,0.00019452,2]
[359606812,1746179446909,-400.0,0.00019452,2]
[359606813,1746179446919,-632.27,0.00019452,2]
[359606814,1746179446929,-400.0,0.00019452,2]
[359606815,1746179446938,-400.0,0.00019452,2]
[359606816,1746179446948,-400.0,0.00019452,2]
[359606817,1746179446958,-429.85819199,0.00019452,2]
[359606818,1746179446969,-400.0,0.00019452,2]
[359606819,1746179446979,-400.0,0.00019452,2]
[359606820,1746179446989,-244.21115541,0.00019452,2]
[359606821,1746179446999,-2309.81,0.00019452,2]
[359606822,1746179447009,-400.0,0.00019452,2]
[359606823,1746179447018,-1533.03,0.00019452,2]
[359606824,1746179447027,-400.0,0.00019452,2]
[359606825,1746179447036,-400.0,0.00019452,2]
[359606826,1746179447045,-400.0,0.00019452,2]
[359606827,1746179447054,-400.0,0.00019452,2]
[359606828,1746179447064,-400.0,0.00019452,2]
[359606829,1746179447073,-400.0,0.00019452,2]
[359606830,1746179447082,-400.0,0.00019452,2]
[359606831,1746179447091,-400.0,0.00019452,2]
[359606832,1746179447100,-400.0,0.00019452,2]
[359606833,1746179447109,-526.91782061,0.00019452,2]
[359606834,1746179447118,-6362.85,0.00019452,2]
[359606835,1746179447127,-500.0,0.00019452,2]
[359606836,1746179447137,-400.0,0.00019452,2]
[359606837,1746179447146,-612.65,0.00019452,2]
[359606838,1746179447155,-997.97,0.00019452,2]
[359606839,1746179447164,-400.0,0.00019452,2]
[359606840,1746179447173,-402.26,0.00019452,2]
[359606841,1746179447182,-502.82,0.00019452,2]
[359606842,1746179447191,-400.0,0.00019452,2]
[359606843,1746179447201,-401.81594102,0.00019452,2]
[359606844,1746179447210,-400.0,0.00019452,2]
[359606845,1746179447219,-372.32259553,0.00019452,2]
[359606846,1746179447228,-1870.37,0.00019452,2]
[359606847,1746179447237,-1267.6,0.00019452,2]
[359606848,1746179447246,-400.0,0.00019452,2]
[359606849,1746179447255,-902.54,0.00019452,2]
[359606850,1746179447264,-693.61,0.00019452,2]
[359606851,1746179447273,-404.83491224,0.00019452,2]
[359606852,1746179447282,-500.0,0.00019452,2]
[359606853,1746179447291,-1887.37,0.00019452,2]
[359606854,1746179447301,-400.0,0.00019452,2]
[359606855,1746179447310,-400.0,0.00019452,2]
[359606856,1746179447320,-400.0,0.00019452,2]
[359606857,1746179447330,-400.0,0.00019452,2]
[359606858,1746179447339,-233.84659853,0.00019452,2]
[359606859,1746179447348,-646.72,0.00019452,2]
[359606860,1746179447357,-400.0,0.00019452,2]
[359606861,1746179447366,-400.0,0.00019452,2]
[359606862,1746179447375,-453.97,0.00019452,2]
[359606863,1746179447385,-400.0,0.00019452,2]
[359606864,1746179447394,-470.52,0.00019452,2]
[359606865,1746179447403,-400.0,0.00019452,2]
[359606866,1746179447413,-400.0,0.00019452,2]
[359606867,1746179447422,-929.14,0.00019452,2]
[359606868,1746179447433,-338.54187457,0.00019452,2]
[359606869,1746179447442,-406.78979193,0.00019452,2]
[359606870,1746179447452,-400.0,0.00019452,2]